[Event "DVM U16w 2024"]
[Site "Neumuenster"]
[Date "2024.12.29"]
[Round "5"]
[White "Leuchsenring, Delia"]
[Black "Hoffmann, Svenja"]
[Result "0-1"]
[ECO "C47"]
[WhiteElo "1500"]
[BlackElo "1643"]
[Annotator "NA RC"]
[PlyCount "92"]
[EventDate "2024.12.23"]
[EventType "team-tourn"]
[EventRounds "7"]
[EventCountry "GER"]
[SourceTitle "playchess.com"]
[Source "ChessBase"]
[SourceQuality "1"]
[TimeControl "40/5400+30:1800+30"]

1. e4 {[%emt 0:00:02]} e5 {[%emt 0:00:06]} 2. Nf3 {[%emt 0:00:04]} Nc6 {[%emt 0:00:06]} 3. d4 {[%emt 0:00:05]} exd4 {[%emt 0:01:16]} 4. Nxd4 {[%emt 0:00:07]} Nf6 {[%emt 0:00:55]} 5. Nc3 {[%emt 0:01:24]} Bb4 {[%emt 0:04:23]} 6. Nxc6 {[%emt 0:06:00]} bxc6 {[%emt 0:00:11]} 7. Bd3 {[%emt 0:01:59]} O-O {[%emt 0:01:35]} 8. O-O {[%emt 0:01:35]} Re8 {[%emt 0:00:38]} 9. Re1 {[%emt 0:05:02]} Bb7 {[%emt 0:10:41]} 10. Bg5 {[%emt 0:08:39]} d6 {[%emt 0:11:05]} 11. Qf3 {[%emt 0:05:09]} Re6 {[%emt 0:02:34]} 12. Rad1 {[%emt 0:09:09]} Bxc3 {[%emt 0:06:00]} 13. bxc3 {[%emt 0:00:18]} c5 {[%emt 0:05:04]} 14. Bc4 {[%emt 0:17:16]} Rxe4 {[%emt 0:01:44]} 15. Rxe4 {[%emt 0:01:29]} Bxe4 {[%emt 0:00:17]} 16. Qe2 {[%emt 0:08:49]} Bb7 {[%emt 0:05:07]} 17. Re1 {[%emt 0:03:13]} h6 {[%emt 0:01:21]} 18. Bh4 {[%emt 0:03:03]} g5 {[%emt 0:01:26]} 19. Bg3 {[%emt 0:02:47]} d5 {[%emt 0:02:22]} 20. Rb1 {[%emt 0:04:25]} Rb8 {[%emt 0:02:51]} 21. Bd3 {[%emt 0:02:15]} Ne4 {[%emt 0:02:50]} 22. Bxe4 {[%emt 0:03:50]} dxe4 {[%emt 0:00:12]} 23. Rd1 {[%emt 0:05:24]} Qe7 {[%emt 0:01:40]} 24. h3 {[%emt 0:04:08]} f5 {[%emt 0:01:13]} 25. Qc4+ {[%emt 0:03:24]} Kh8 {[%emt 0:02:48]} 26. Qa4 {[%emt 0:00:33]} f4 {[%emt 0:02:39]} 27. Bh2 {[%emt 0:01:53]} c6 {[%emt 0:00:43]} 28. Re1 {[%emt 0:00:14]} Re8 {[%emt 0:00:38]} 29. Qc4 {[%emt 0:00:26]} Kg7 {[%emt 0:04:24]} 30. Qe2 {[%emt 0:01:02]} Qe5 {[%emt 0:03:03]} 31. Qd2 {[%emt 0:00:37]} Qd5 {[%emt 0:00:12]} 32. Qd1 {[%emt 0:00:33]} Rd8 {[%emt 0:00:53]} 33. Qe2 {[%emt 0:00:46]} Re8 {[%emt 0:00:55]} 34. c4 {[%emt 0:00:34]} Qe5 {[%emt 0:00:47]} 35. Qd1 {[%emt 0:00:36]} Bc8 {[%emt 0:01:27]} 36. Qd2 {[%emt 0:00:32]} Qd4 {[%emt 0:01:06]} 37. Qe2 {[%emt 0:00:36]} Bf5 {[%emt 0:03:20]} 38. Rd1 {[%emt 0:00:31]} Qe5 {[%emt 0:00:25]} 39. Re1 {[%emt 0:00:13]} Rd8 {[%emt 0:00:53]} 40. Kf1 {[%emt 0:00:14]} Qd4 {[%emt 0:01:24]} 41. Bg1 {[%emt 0:30:18]} Qc3 {[%emt 0:31:04]} 42. Rb1 {[%emt 0:00:37]} f3 {[%emt 0:01:02]} 43. Qe3 {[%emt 0:01:23]} Qxc4+ {[%emt 0:03:45]} 44. Ke1 {[%emt 0:00:00]} fxg2 {[%emt 0:00:00]} 45. Qe2 {[%emt 0:00:00]} Qc3+ {[%emt 0:00:00]} 46. Qd2 {[%emt 0:00:00]} Qxd2# {[%emt 0:00:00]} 0-1

[Event "DVM U16w 2024"]
[Site "Neumuenster"]
[Date "2024.12.29"]
[Round "5"]
[White "Funke, Luise"]
[Black "Koeppel, Clementine"]
[Result "1-0"]
[ECO "C42"]
[WhiteElo "1491"]
[BlackElo "1555"]
[Annotator "NA RC"]
[PlyCount "81"]
[EventDate "2024.12.23"]
[EventType "team-tourn"]
[EventRounds "7"]
[EventCountry "GER"]
[SourceTitle "playchess.com"]
[Source "ChessBase"]
[SourceQuality "1"]
[TimeControl "40/5400+30:1800+30"]

1. e4 {[%emt 0:00:03]} e5 {[%emt 0:00:09]} 2. Nf3 {[%emt 0:00:10]} Nf6 {[%emt 0:00:10]} 3. Nxe5 {[%emt 0:00:14]} d6 {[%emt 0:00:24]} 4. Nf3 {[%emt 0:00:10]} Nxe4 {[%emt 0:00:07]} 5. d4 {[%emt 0:00:11]} d5 {[%emt 0:00:10]} 6. Bd3 {[%emt 0:00:12]} Bg4 {[%emt 0:02:07]} 7. O-O {[%emt 0:01:50]} Nf6 {[%emt 0:02:50]} 8. c4 {[%emt 0:08:14]} c6 {[%emt 0:02:37]} 9. Nc3 {[%emt 0:02:31]} Bxf3 {[%emt 0:04:56]} 10. Qxf3 {[%emt 0:01:13]} dxc4 {[%emt 0:00:48]} 11. Qe3+ {[%emt 0:02:35]} Be7 {[%emt 0:02:08]} 12. Bxc4 {[%emt 0:01:26]} O-O {[%emt 0:01:13]} 13. Qd3 {[%emt 0:13:36]} Qd6 {[%emt 0:08:49]} 14. Be3 {[%emt 0:03:30]} Ng4 {[%emt 0:19:53]} 15. g3 {[%emt 0:05:08]} Nd7 {[%emt 0:13:20]} 16. Bf4 {[%emt 0:07:25]} Qg6 {[%emt 0:15:49]} 17. Qxg6 {[%emt 0:06:00]} hxg6 {[%emt 0:00:10]} 18. Rfe1 {[%emt 0:01:22]} Bf6 {[%emt 0:03:36]} 19. Be2 {[%emt 0:03:52]} Nh6 {[%emt 0:01:21]} 20. Rad1 {[%emt 0:01:38]} Nf5 {[%emt 0:04:39]} 21. d5 {[%emt 0:09:50]} cxd5 {[%emt 0:04:02]} 22. Rxd5 {[%emt 0:00:25]} Nb6 {[%emt 0:00:38]} 23. Rd3 {[%emt 0:00:50]} Rfe8 {[%emt 0:01:31]} 24. Kf1 {[%emt 0:04:01]} Be5 {[%emt 0:03:31]} 25. Bxe5 {[%emt 0:01:30]} Rxe5 {[%emt 0:00:15]} 26. Red1 {[%emt 0:01:06]} Rae8 {[%emt 0:02:06]} 27. Bf3 {[%emt 0:01:44]} R8e7 {[%emt 0:01:03]} 28. Rd8+ {[%emt 0:02:05]} Kh7 {[%emt 0:00:17]} 29. Rb8 {[%emt 0:01:41]} Nh6 {[%emt 0:03:21]} 30. Rdd8 {[%emt 0:00:48]} g5 {[%emt 0:01:12]} 31. Bxb7 {[%emt 0:07:35]} Re1+ {[%emt 0:01:39]} 32. Kg2 {[%emt 0:00:11]} Ng4 {[%emt 0:00:07]} 33. Bf3 {[%emt 0:01:10]} Nf6 {[%emt 0:00:34]} 34. Bc6 {[%emt 0:03:07]} Kg6 {[%emt 0:00:52]} 35. Rd4 {[%emt 0:02:29]} Kh5 {[%emt 0:01:00]} 36. Bf3+ {[%emt 0:00:24]} Kh6 {[%emt 0:00:11]} 37. Rbd8 {[%emt 0:02:20]} R1e5 {[%emt 0:00:47]} 38. Bd1 {[%emt 0:00:59]} Kg6 {[%emt 0:00:34]} 39. Bc2+ {[%emt 0:00:16]} Kh5 {[%emt 0:00:11]} 40. Rh8+ {[%emt 0:00:16]} Nh7 {[%emt 0:00:27]} 41. Rxh7# {[%emt 0:30:07]} 1-0

[Event "DVM U16w 2024"]
[Site "Neumuenster"]
[Date "2024.12.29"]
[Round "5"]
[White "Quauck, Isabell"]
[Black "Fetahovic, Maida"]
[Result "0-1"]
[ECO "A00"]
[WhiteElo "1465"]
[BlackElo "1505"]
[Annotator "NA RC"]
[PlyCount "118"]
[EventDate "2024.12.23"]
[EventType "team-tourn"]
[EventRounds "7"]
[EventCountry "GER"]
[SourceTitle "playchess.com"]
[Source "ChessBase"]
[SourceQuality "1"]
[TimeControl "40/5400+30:1800+30"]

1. b4 {[%emt 0:00:03]} e5 {[%emt 0:00:09]} 2. Bb2 {[%emt 0:00:09]} e4 {[%emt 0:00:07]} 3. e3 {[%emt 0:05:54]} Nf6 {[%emt 0:02:22]} 4. a3 {[%emt 0:02:24]} d5 {[%emt 0:01:35]} 5. d3 {[%emt 0:04:27]} Bd6 {[%emt 0:06:21]} 6. dxe4 {[%emt 0:01:27]} dxe4 {[%emt 0:00:16]} 7. Nd2 {[%emt 0:05:34]} Bf5 {[%emt 0:17:00]} 8. Qe2 {[%emt 0:03:39]} a6 {[%emt 0:04:32]} 9. Rd1 {[%emt 0:04:24]} O-O {[%emt 0:01:06]} 10. Nc4 {[%emt 0:02:55]} Qe7 {[%emt 0:06:41]} 11. Nxd6 {[%emt 0:16:20]} cxd6 {[%emt 0:00:24]} 12. b5 {[%emt 0:00:45]} Rc8 {[%emt 0:06:43]} 13. Qd2 {[%emt 0:05:49]} Rd8 {[%emt 0:11:56]} 14. c4 {[%emt 0:03:50]} b6 {[%emt 0:03:57]} 15. Bxf6 {[%emt 0:07:21]} Qxf6 {[%emt 0:00:37]} 16. Qd5 {[%emt 0:00:20]} Ra7 {[%emt 0:06:02]} 17. f3 {[%emt 0:04:51]} Qc3+ {[%emt 0:10:54]} 18. Rd2 {[%emt 0:02:26]} Qxe3+ {[%emt 0:01:28]} 19. Be2 {[%emt 0:01:41]} Be6 {[%emt 0:04:55]} 20. Qxe4 {[%emt 0:02:34]} Qxe4 {[%emt 0:00:20]} 21. fxe4 {[%emt 0:00:10]} axb5 {[%emt 0:00:40]} 22. e5 {[%emt 0:01:30]} bxc4 {[%emt 0:01:16]} 23. Nf3 {[%emt 0:02:35]} Nc6 {[%emt 0:04:25]} 24. O-O {[%emt 0:00:47]} h6 {[%emt 0:00:35]} 25. Ra1 {[%emt 0:01:29]} Rad7 {[%emt 0:01:12]} 26. Nd4 {[%emt 0:01:22]} Nxd4 {[%emt 0:00:23]} 27. Rxd4 {[%emt 0:00:12]} dxe5 {[%emt 0:00:17]} 28. Rxd7 {[%emt 0:00:17]} Rxd7 {[%emt 0:00:09]} 29. Rc1 {[%emt 0:00:31]} Rc7 {[%emt 0:00:38]} 30. a4 {[%emt 0:00:46]} c3 {[%emt 0:01:42]} 31. Kf1 {[%emt 0:00:23]} Bb3 {[%emt 0:00:27]} 32. Bd1 {[%emt 0:00:22]} Bxd1 {[%emt 0:00:20]} 33. Rxd1 {[%emt 0:00:10]} c2 {[%emt 0:00:12]} 34. Rc1 {[%emt 0:00:06]} Kf8 {[%emt 0:00:05]} 35. Ke1 {[%emt 0:00:09]} Ke7 {[%emt 0:00:53]} 36. Kd2 {[%emt 0:00:28]} Rd7+ {[%emt 0:01:02]} 37. Kc3 {[%emt 0:00:08]} Rc7+ {[%emt 0:00:08]} 38. Kb3 {[%emt 0:00:11]} Kd6 {[%emt 0:00:31]} 39. Kb4 {[%emt 0:00:27]} Rc5 {[%emt 0:00:44]} 40. g4 {[%emt 0:00:17]} e4 {[%emt 0:00:23]} 41. Kb3 {[%emt 0:35:26]} Kd5 {[%emt 0:32:12]} 42. Kb2 {[%emt 0:00:11]} Kd4 {[%emt 0:01:40]} 43. Rxc2 {[%emt 0:00:15]} Rxc2+ {[%emt 0:00:12]} 44. Kxc2 {[%emt 0:00:05]} g6 {[%emt 0:00:14]} 45. Kd2 {[%emt 0:00:28]} f5 {[%emt 0:03:41]} 46. gxf5 {[%emt 0:00:26]} gxf5 {[%emt 0:00:08]} 47. Ke2 {[%emt 0:00:05]} f4 {[%emt 0:00:42]} 48. h4 {[%emt 0:00:17]} f3+ {[%emt 0:00:22]} 49. Kf2 {[%emt 0:00:13]} Kd3 {[%emt 0:00:16]} 50. h5 {[%emt 0:00:11]} e3+ {[%emt 0:00:48]} 51. Kxf3 {[%emt 0:00:10]} e2 {[%emt 0:00:06]} 52. Kf2 {[%emt 0:00:11]} Kd2 {[%emt 0:00:06]} 53. Kf3 {[%emt 0:00:09]} e1=Q {[%emt 0:00:11]} 54. a5 {[%emt 0:00:10]} Qe3+ {[%emt 0:00:45]} 55. Kg4 {[%emt 0:00:10]} bxa5 {[%emt 0:01:21]} 56. Kh4 {[%emt 0:00:15]} Qg5+ {[%emt 0:00:09]} 57. Kh3 {[%emt 0:00:10]} Ke3 {[%emt 0:00:06]} 58. Kh2 {[%emt 0:00:11]} Kf2 {[%emt 0:00:05]} 59. Kh3 {[%emt 0:00:13]} Qg3# {[%emt 0:00:06]} 0-1

[Event "DVM U16w 2024"]
[Site "Neumuenster"]
[Date "2024.12.29"]
[Round "5"]
[White "Mauhs, Helena"]
[Black "Blome, Antonia"]
[Result "1/2-1/2"]
[ECO "B44"]
[WhiteElo "1249"]
[BlackElo "1228"]
[Annotator "NA"]
[PlyCount "67"]
[EventDate "2024.12.23"]
[EventType "team-tourn"]
[EventRounds "7"]
[EventCountry "GER"]
[SourceTitle "playchess.com"]
[Source "ChessBase"]
[SourceQuality "1"]
[TimeControl "40/5400+30:1800+30"]

1. e4 {[%emt 0:00:01]} c5 {[%emt 0:00:06]} 2. Nf3 {[%emt 0:00:05]} e6 {[%emt 0:00:06]} 3. d4 {[%emt 0:00:38]} cxd4 {[%emt 0:00:07]} 4. Nxd4 {[%emt 0:00:09]} Nc6 {[%emt 0:00:05]} 5. Nxc6 {[%emt 0:00:53]} bxc6 {[%emt 0:00:22]} 6. c4 {[%emt 0:00:53]} Nf6 {[%emt 0:02:02]} 7. Bg5 {[%emt 0:10:14]} Qa5+ {[%emt 0:00:52]} 8. Bd2 {[%emt 0:10:28]} Qc7 {[%emt 0:01:08]} 9. Nc3 {[%emt 0:05:40]} Bc5 {[%emt 0:03:39]} 10. Qf3 {[%emt 0:09:45]} Qe5 {[%emt 0:07:06]} 11. Bf4 {[%emt 0:04:07]} Qh5 {[%emt 0:00:20]} 12. Qxh5 {[%emt 0:01:19]} Nxh5 {[%emt 0:00:06]} 13. Bd2 {[%emt 0:01:41]} Bd4 {[%emt 0:03:27]} 14. Rd1 {[%emt 0:05:07]} Nf6 {[%emt 0:01:20]} 15. Bd3 {[%emt 0:04:42]} Ng4 {[%emt 0:02:44]} 16. O-O {[%emt 0:03:29]} O-O {[%emt 0:02:41]} 17. h3 {[%emt 0:05:27]} Ne5 {[%emt 0:01:35]} 18. Be2 {[%emt 0:05:31]} c5 {[%emt 0:01:56]} 19. Kh1 {[%emt 0:02:43]} Bb7 {[%emt 0:05:28]} 20. f3 {[%emt 0:03:09]} a6 {[%emt 0:04:20]} 21. f4 {[%emt 0:05:24]} Ng6 {[%emt 0:00:46]} 22. Bd3 {[%emt 0:03:49]} f5 {[%emt 0:01:21]} 23. Rde1 {[%emt 0:02:10]} Ne7 {[%emt 0:05:30]} 24. Re2 {[%emt 0:01:57]} Rae8 {[%emt 0:03:06]} 25. b3 {[%emt 0:04:06]} g6 {[%emt 0:03:40]} 26. Nd1 {[%emt 0:01:12]} fxe4 {[%emt 0:00:55]} 27. Bxe4 {[%emt 0:00:39]} Bxe4 {[%emt 0:00:06]} 28. Rxe4 {[%emt 0:00:11]} Nf5 {[%emt 0:00:10]} 29. Kh2 {[%emt 0:00:49]} Nd6 {[%emt 0:07:13]} 30. Re2 {[%emt 0:00:54]} e5 {[%emt 0:00:26]} 31. g3 {[%emt 0:00:55]} exf4 {[%emt 0:01:50]} 32. Rxe8 {[%emt 0:01:06]} Rxe8 {[%emt 0:00:29]} 33. Bxf4 {[%emt 0:00:40]} Re2+ {[%emt 0:00:12]} 34. Kh1 {[%emt 0:00:12]} 1/2-1/2

[Event "DVM U16w 2024"]
[Site "Neumuenster"]
[Date "2024.12.29"]
[Round "5"]
[White "Kasten, Luna Seraphine"]
[Black "Fetahovic, Sarah"]
[Result "0-1"]
[ECO "B21"]
[WhiteElo "1203"]
[BlackElo "1739"]
[Annotator "NA"]
[PlyCount "58"]
[EventDate "2024.12.23"]
[EventType "team-tourn"]
[EventRounds "7"]
[EventCountry "GER"]
[SourceTitle "playchess.com"]
[Source "ChessBase"]
[SourceQuality "1"]
[TimeControl "40/5400+30:1800+30"]

1. e4 {[%emt 0:00:03]} c5 {[%emt 0:00:10]} 2. d4 {[%emt 0:00:12]} cxd4 {[%emt 0:00:17]} 3. c3 {[%emt 0:00:25]} e5 {[%emt 0:00:12]} 4. Bc4 {[%emt 0:00:35]} Nc6 {[%emt 0:07:14]} 5. Nf3 {[%emt 0:01:35]} Nf6 {[%emt 0:08:13]} 6. Bg5 {[%emt 0:03:11]} dxc3 {[%emt 0:12:38]} 7. Nxc3 {[%emt 0:01:49]} Bb4 {[%emt 0:00:53]} 8. Qd3 {[%emt 0:00:44]} d6 {[%emt 0:04:09]} 9. O-O {[%emt 0:00:48]} Bxc3 {[%emt 0:00:31]} 10. Qxc3 {[%emt 0:03:09]} h6 {[%emt 0:00:27]} 11. Bh4 {[%emt 0:01:41]} g5 {[%emt 0:01:57]} 12. Bg3 {[%emt 0:05:18]} Nxe4 {[%emt 0:02:05]} 13. Qb3 {[%emt 0:00:48]} Qe7 {[%emt 0:02:34]} 14. Rad1 {[%emt 0:06:50]} f5 {[%emt 0:08:28]} 15. h3 {[%emt 0:02:50]} f4 {[%emt 0:06:10]} 16. Bh2 {[%emt 0:03:55]} h5 {[%emt 0:00:18]} 17. Bd5 {[%emt 0:03:44]} Bf5 {[%emt 0:06:00]} 18. Qa4 {[%emt 0:08:16]} Nc5 {[%emt 0:01:29]} 19. Bxc6+ {[%emt 0:02:55]} Kf8 {[%emt 0:00:45]} 20. Qc4 {[%emt 0:02:26]} bxc6 {[%emt 0:01:09]} 21. g3 {[%emt 0:04:19]} Bxh3 {[%emt 0:01:33]} 22. Rfe1 {[%emt 0:00:42]} Bg4 {[%emt 0:00:21]} 23. gxf4 {[%emt 0:01:13]} Bxf3 {[%emt 0:10:33]} 24. Rc1 {[%emt 0:01:20]} gxf4 {[%emt 0:01:25]} 25. Bxf4 {[%emt 0:02:46]} Qg7+ {[%emt 0:00:39]} 26. Bg3 {[%emt 0:00:37]} Qg4 {[%emt 0:00:22]} 27. Qf1 {[%emt 0:00:37]} h4 {[%emt 0:00:20]} 28. b3 {[%emt 0:03:02]} hxg3 {[%emt 0:00:16]} 29. Rc4 {[%emt 0:00:58]} Rh1# {[%emt 0:00:17]} 0-1

[Event "DVM U16w 2024"]
[Site "Neumuenster"]
[Date "2024.12.29"]
[Round "5"]
[White "Daaboul, Shaimaa"]
[Black "Eger, Nora"]
[Result "0-1"]
[ECO "B08"]
[WhiteElo "1143"]
[BlackElo "1570"]
[Annotator "NA"]
[PlyCount "78"]
[EventDate "2024.12.23"]
[EventType "team-tourn"]
[EventRounds "7"]
[EventCountry "GER"]
[SourceTitle "playchess.com"]
[Source "ChessBase"]
[SourceQuality "1"]
[TimeControl "40/5400+30:1800+30"]

1. d4 {[%emt 0:00:02]} Nf6 {[%emt 0:00:31]} 2. Nc3 {[%emt 0:00:16]} g6 {[%emt 0:00:34]} 3. e4 {[%emt 0:00:29]} d6 {[%emt 0:00:09]} 4. h3 {[%emt 0:00:49]} Bg7 {[%emt 0:01:34]} 5. Nf3 {[%emt 0:00:20]} O-O {[%emt 0:01:12]} 6. Be2 {[%emt 0:01:23]} Nbd7 {[%emt 0:04:03]} 7. Be3 {[%emt 0:07:59]} e5 {[%emt 0:01:24]} 8. Qd2 {[%emt 0:02:38]} Re8 {[%emt 0:04:32]} 9. h4 {[%emt 0:09:18]} exd4 {[%emt 0:05:05]} 10. Nxd4 {[%emt 0:09:05]} Nxe4 {[%emt 0:05:02]} 11. Nxe4 {[%emt 0:04:45]} Rxe4 {[%emt 0:02:07]} 12. h5 {[%emt 0:03:04]} Qe7 {[%emt 0:07:54]} 13. hxg6 {[%emt 0:04:27]} fxg6 {[%emt 0:01:13]} 14. Bd3 {[%emt 0:01:41]} Rxd4 {[%emt 0:02:01]} 15. O-O-O {[%emt 0:02:18]} Rh4 {[%emt 0:07:32]} 16. Rhe1 {[%emt 0:06:11]} Qf6 {[%emt 0:07:06]} 17. c3 {[%emt 0:03:30]} Ne5 {[%emt 0:07:03]} 18. Bc2 {[%emt 0:04:00]} Be6 {[%emt 0:08:59]} 19. Bg5 {[%emt 0:04:14]} Qxg5 {[%emt 0:03:37]} 20. Qxg5 {[%emt 0:03:40]} Bh6 {[%emt 0:00:14]} 21. Qxh6 {[%emt 0:00:20]} Rxh6 {[%emt 0:00:07]} 22. f4 {[%emt 0:00:44]} Bg4 {[%emt 0:03:23]} 23. Rd5 {[%emt 0:05:18]} Nc6 {[%emt 0:02:45]} 24. Re3 {[%emt 0:04:56]} Rh5 {[%emt 0:04:47]} 25. Rd2 {[%emt 0:05:16]} Rh1+ {[%emt 0:00:41]} 26. Bd1 {[%emt 0:00:55]} Bxd1 {[%emt 0:01:48]} 27. Rxd1 {[%emt 0:01:03]} Rxd1+ {[%emt 0:00:07]} 28. Kxd1 {[%emt 0:00:02]} Kf7 {[%emt 0:01:09]} 29. Kd2 {[%emt 0:01:28]} Re8 {[%emt 0:00:39]} 30. Rh3 {[%emt 0:00:09]} Kg7 {[%emt 0:01:30]} 31. g4 {[%emt 0:01:25]} Re4 {[%emt 0:02:41]} 32. Rf3 {[%emt 0:00:13]} Na5 {[%emt 0:04:42]} 33. Kd3 {[%emt 0:00:40]} d5 {[%emt 0:02:02]} 34. f5 {[%emt 0:01:10]} Rxg4 {[%emt 0:01:42]} 35. f6+ {[%emt 0:00:17]} Kf7 {[%emt 0:00:16]} 36. Rh3 {[%emt 0:00:38]} h5 {[%emt 0:00:27]} 37. Rf3 {[%emt 0:00:45]} Nc4 {[%emt 0:01:28]} 38. Kc2 {[%emt 0:00:22]} Rg2+ {[%emt 0:00:21]} 39. Kb3 {[%emt 0:00:20]} Nd2+ {[%emt 0:00:05]} 0-1

[Event "DVM U16w 2024"]
[Site "Neumuenster"]
[Date "2024.12.29"]
[Round "5"]
[White "Dong, Beicen"]
[Black "Sniegowski, Victoria"]
[Result "1-0"]
[ECO "A85"]
[WhiteElo "1052"]
[BlackElo "1536"]
[Annotator "NA"]
[PlyCount "50"]
[EventDate "2024.12.23"]
[EventType "team-tourn"]
[EventRounds "7"]
[EventCountry "GER"]
[SourceTitle "playchess.com"]
[Source "ChessBase"]
[SourceQuality "1"]
[TimeControl "40/5400+30:1800+30"]

1. d4 {[%emt 0:00:02]} d6 {[%emt 0:00:07]} 2. Nf3 {[%emt 0:00:33]} f5 {[%emt 0:00:50]} 3. c4 {[%emt 0:01:14]} g6 {[%emt 0:00:46]} 4. Nc3 {[%emt 0:02:15]} Nf6 {[%emt 0:00:54]} 5. Bf4 {[%emt 0:03:30]} Bg7 {[%emt 0:01:20]} 6. e3 {[%emt 0:01:31]} O-O {[%emt 0:00:27]} 7. c5 {[%emt 0:01:17]} d5 {[%emt 0:01:45]} 8. Qb3 {[%emt 0:03:46]} e6 {[%emt 0:00:52]} 9. Bd3 {[%emt 0:00:36]} b6 {[%emt 0:01:03]} 10. Nb5 {[%emt 0:03:37]} Ne8 {[%emt 0:05:53]} 11. Rc1 {[%emt 0:05:10]} Bd7 {[%emt 0:05:12]} 12. Ne5 {[%emt 0:12:26]} c6 {[%emt 0:05:48]} 13. cxb6 {[%emt 0:04:41]} cxb5 {[%emt 0:01:40]} 14. b7 {[%emt 0:00:22]} Qa5+ {[%emt 0:01:39]} 15. Ke2 {[%emt 0:02:12]} Nc7 {[%emt 0:02:14]} 16. Rxc7 {[%emt 0:00:34]} Qxc7 {[%emt 0:00:23]} 17. bxa8=Q {[%emt 0:03:39]} Bxe5 {[%emt 0:03:02]} 18. Bxe5 {[%emt 0:00:58]} Qb6 {[%emt 0:01:24]} 19. Bd6 {[%emt 0:12:54]} Rc8 {[%emt 0:02:42]} 20. Bxb8 {[%emt 0:01:50]} Rxb8 {[%emt 0:00:20]} 21. Qxb8+ {[%emt 0:00:21]} Qxb8 {[%emt 0:00:07]} 22. f4 {[%emt 0:01:34]} Qc7 {[%emt 0:01:02]} 23. Kd2 {[%emt 0:00:24]} Qa5+ {[%emt 0:00:23]} 24. Ke2 {[%emt 0:01:58]} Qc7 {[%emt 0:00:15]} 25. Qc3 {[%emt 0:00:39]} Qxc3 {[%emt 0:01:23]} 1-0